bitfinex/quotes_ETHUSD_20251116
["timestamp","ask_amount","ask_price","bid_price","bid_amount"]
[1763270675081,0.29093604,3210.2,3210.1,0.4911]
[1763270675492,0.29093604,3210.2,3210.1,0.9433]
[1763270676400,0.61557837,3210.2,3210.1,0.4522]
[1763270676608,0.61557837,3210.2,3210.1,0.4022]
[1763270676808,0.61557837,3210.2,3210.1,0.8933]
[1763270676998,0.61557837,3210.2,3210.1,0.4022]
[1763270679709,1.10642865,3210.2,3210.1,0.4022]
[1763270682011,0.61757837,3210.2,3210.1,0.4022]
[1763270682564,0.002,3210.2,3210.1,0.8933]
[1763270683443,0.002,3210.2,3210.1,2.71504646]
[1763270683649,0.002,3210.6,3210.1,2.71504646]
[1763270683946,0.002,3210.6,3210.5,0.4522]
[1763270684182,0.002,3210.6,3210.2,0.4911]
[1763270684183,1.82174646,3212.2,3211.0,2.27394646]
[1763270684298,0.002,3212.7,3211.2,0.4522]
[1763270684299,1.82174646,3211.8,3211.2,0.4522]
[1763270684503,1.82174646,3211.6,3211.2,0.4522]
[1763270684728,1.82174646,3211.4,3211.2,0.4522]
[1763270684910,1.82174646,3211.4,3211.1,0.5982]
[1763270685114,0.48869162,3211.7,3211.1,0.5982]
[1763270685115,1.82174646,3211.6,3211.3,0.4522]
[1763270685328,1.82174646,3211.6,3211.1,0.5982]
[1763270685533,1.82174646,3211.6,3211.5,0.4522]
[1763270686303,0.48869162,3211.7,3211.5,0.9433]
[1763270686505,0.1921,3212.8,3211.6,2.27394646]
[1763270686506,1.82174646,3212.8,3211.6,2.27394646]
[1763270686712,1.82174646,3212.8,3212.2,0.5947]
[1763270686919,1.82174646,3212.8,3212.2,1.0858]
[1763270687245,1.82174646,3212.6,3212.2,1.0858]
[1763270687651,1.82174646,3212.4,3212.2,0.5947]
[1763270688249,1.82174646,3212.5,3212.2,0.5947]
[1763270688630,1.82174646,3212.5,3212.2,0.4522]
[1763270688951,0.002,3212.7,3212.2,0.5947]
[1763270691966,0.4974,3212.3,3211.8,0.4911]
[1763270692138,2.27339468,3212.2,3211.3,0.4911]
[1763270692469,2.27339468,3212.2,3211.2,0.4911]
[1763270692470,0.32324947,3212.1,3211.2,0.4911]
[1763270692875,1.45699027,3212.1,3211.2,0.4911]
[1763270693764,0.32324947,3212.1,3212.0,0.4522]
[1763270693948,0.002,3212.3,3212.0,0.4522]
[1763270694147,0.002,3212.3,3212.2,0.5947]
[1763270694554,0.002,3212.3,3211.7,0.4911]
[1763270695089,0.002,3212.3,3212.2,0.5947]
[1763270695800,0.9591,3212.3,3211.2,0.405504]
[1763270695953,0.9591,3212.3,3211.2,0.4911]
[1763270695954,0.3071,3212.0,3211.2,0.4911]
[1763270697398,0.3071,3212.0,3211.1,0.1071]
[1763270697399,1.7875408,3211.9,3211.1,0.1071]
[1763270697611,1.1337408,3212.2,3211.9,0.4522]
[1763270697905,0.002,3212.3,3211.9,0.4522]
[1763270698695,0.4617,3212.2,3211.3,0.4911]
[1763270698992,0.39341185,3212.1,3211.3,0.4911]
[1763270699345,1.1337408,3212.0,3211.3,0.4911]
[1763270699550,0.39341185,3212.1,3211.3,0.4911]
[1763270699751,0.002,3212.3,3212.0,0.4522]
[1763270700054,0.49065858,3212.3,3212.0,0.4522]
[1763270700250,0.49065858,3212.3,3212.2,0.4522]
[1763270700492,0.002,3212.3,3212.2,0.4522]
[1763270700995,0.4974,3212.3,3211.1,1.2408408]
[1763270701161,0.4974,3212.3,3211.5,0.4911]
[1763270701566,0.4974,3212.3,3212.2,0.5947]
[1763270701567,0.002,3212.3,3212.2,0.5947]
[1763270703473,0.49061256,3212.3,3212.2,0.5947]
[1763270707721,0.49061256,3212.3,3211.9,0.4911]
[1763270707885,0.49061256,3212.3,3211.6,0.4684]
[1763270708518,0.49061256,3212.3,3212.2,0.4891]
[1763270708724,0.49061256,3212.3,3211.6,0.4684]
[1763270708725,0.6530479,3212.3,3211.6,0.4684]
[1763270708887,0.49061256,3212.3,3211.6,0.4684]
[1763270709412,0.49061256,3212.3,3211.4,0.28998579]
[1763270709618,0.49061256,3212.3,3211.5,0.4684]
[1763270713104,0.29167211,3212.2,3211.5,0.4684]
[1763270713505,0.29167211,3212.2,3212.1,0.4891]
[1763270714706,0.77307211,3212.2,3211.4,0.28998579]
[1763270714905,0.29167211,3212.1,3211.6,0.4743]
[1763270715140,0.4814,3212.2,3211.6,0.4743]
[1763270715344,0.291957,3212.1,3211.6,0.4743]
[1763270715511,0.002,3212.3,3211.6,0.4743]
[1763270715711,0.29195438,3212.2,3211.6,0.4743]
[1763270716041,0.29195438,3212.1,3211.6,0.4743]
[1763270716228,0.29195438,3212.0,3211.6,0.4743]
[1763270716545,0.4674,3212.3,3211.4,0.76428579]
[1763270716859,0.29203424,3212.2,3211.4,0.76428579]
[1763270717010,0.29203424,3212.1,3211.1,0.5814]
[1763270717209,0.29203424,3212.0,3211.1,0.5814]
[1763270717409,0.4654,3212.1,3211.1,0.5814]
[1763270717410,0.29203424,3211.9,3211.1,0.5814]
[1763270717652,0.29203424,3211.8,3211.0,0.001]
[1763270717950,3.92399028,3211.7,3211.0,0.001]
[1763270718152,0.29206543,3211.6,3211.0,0.001]
[1763270718320,0.29206543,3211.5,3211.0,0.001]
[1763270718516,0.29206543,3211.4,3211.0,0.001]
[1763270718748,0.4654,3211.6,3211.0,0.001]
[1763270718749,0.29206543,3211.3,3211.0,0.001]
[1763270718949,0.29206543,3211.5,3211.0,0.001]
[1763270719252,0.29206543,3211.4,3211.0,0.001]
[1763270720982,0.4654,3211.3,3211.0,0.001]
[1763270721187,0.4814,3211.1,3211.0,0.001]
[1763270722136,0.43894215,3211.5,3211.0,0.4824]
[1763270722355,0.29168268,3211.4,3211.0,0.4824]
[1763270722673,0.29168268,3211.3,3211.0,0.4824]
[1763270722972,0.75708268,3211.4,3211.0,0.4824]
[1763270723174,0.29168268,3211.3,3211.0,0.4824]
[1763270724089,0.29168268,3211.4,3211.2,0.5885]
[1763270724433,0.29168268,3211.4,3211.3,0.4814]
[1763270724572,0.29168268,3211.6,3211.3,0.4814]
[1763270724746,0.29168268,3211.5,3211.3,0.4743]
[1763270724953,0.002,3212.3,3211.6,0.4814]
[1763270725296,0.52541495,3212.2,3211.7,0.4814]
[1763270725592,0.29154718,3212.1,3211.7,0.4814]
[1763270725795,0.29154718,3212.0,3211.7,0.4814]
[1763270726004,0.29154718,3211.9,3211.7,0.4814]
[1763270726296,0.29154718,3212.1,3211.7,0.4814]
[1763270726452,0.29154718,3212.0,3211.8,0.4814]
[1763270726651,0.29154718,3212.2,3211.7,0.4743]
[1763270726890,0.29154718,3212.1,3211.9,0.4814]
[1763270727095,0.29154718,3212.0,3211.9,0.4814]
[1763270727392,0.29154718,3212.1,3211.9,0.4814]
[1763270727550,0.29154718,3212.0,3211.9,0.4814]
[1763270727856,0.29154718,3212.1,3211.9,0.4814]
[1763270728052,0.29154718,3212.0,3211.9,0.4814]
[1763270728379,0.29154718,3212.1,3211.9,0.4814]
[1763270728559,0.29154718,3212.0,3211.9,0.4814]
[1763270728747,0.29154718,3212.1,3211.9,0.4814]
[1763270728948,0.29154718,3212.0,3211.9,0.4814]
[1763270729257,0.29154718,3212.1,3211.3,0.405504]
[1763270729444,0.29154718,3212.2,3212.0,0.9557]
[1763270729649,0.29154718,3212.1,3212.0,0.4743]
[1763270729858,0.29154718,3212.2,3212.0,0.4743]
[1763270730058,0.29154718,3212.1,3212.0,0.9557]
[1763270730381,0.29154718,3212.2,3212.1,0.4814]
[1763270733183,0.002,3212.3,3212.1,1.0982]
[1763270733391,0.002,3212.3,3212.2,0.9557]
[1763270734484,0.002,3212.3,3212.2,0.9408]
[1763270738961,0.002,3212.3,3212.2,0.4814]
[1763270739262,0.002,3212.3,3212.2,0.4618]
[1763270739465,0.002,3212.3,3212.2,0.9212]
[1763270742592,0.002,3212.5,3212.2,2.4604448]
[1763270742788,0.002,3212.5,3212.4,0.867304]
[1763270743220,0.002,3212.5,3212.4,1.35783337]
[1763270743701,0.002,3212.7,3212.5,0.405504]
[1763270743877,0.002,3212.7,3212.6,0.867304]
[1763270744277,0.002,3212.7,3212.6,1.326704]
[1763270744877,0.002,3212.7,3212.6,1.88403871]
[1763270747011,0.002,3213.0,3212.7,0.405504]
[1763270747210,0.002,3213.6,3213.0,0.405504]
[1763270747372,0.002,3213.6,3213.5,0.999004]
[1763270747572,0.002,3213.6,3213.5,1.79197217]
[1763270748375,0.002,3213.9,3213.5,1.79197217]
[1763270748376,0.002,3213.9,3213.6,0.405504]
[1763270748706,0.002,3213.9,3213.8,4.33772254]
[1763270748906,0.002,3213.9,3213.8,2.0010448]
[1763270749207,2.33667774,3216.1,3213.9,2.0010448]
[1763270749503,0.6629,3216.0,3214.3,0.405504]
[1763270749708,0.4744,3216.5,3214.6,1.5392448]
[1763270749894,0.4744,3216.2,3214.9,0.867304]
[1763270750283,0.4744,3216.2,3214.9,1.326704]
[1763270750487,0.48804141,3216.0,3214.9,2.4604448]
[1763270750740,0.48804141,3216.0,3214.9,3.25121393]
[1763270751278,0.1885,3215.9,3214.9,2.11747313]
[1763270751495,0.1885,3215.9,3214.9,1.326704]
[1763270751702,0.4744,3215.7,3214.9,0.867304]
[1763270751881,0.48804141,3216.0,3214.9,1.326704]
[1763270752081,0.48804141,3216.0,3214.9,2.4604448]
[1763270752315,0.4744,3216.4,3214.9,2.4604448]
[1763270752511,2.52517774,3217.6,3215.3,0.405504]
[1763270752697,2.52517774,3217.6,3216.3,0.4618]
[1763270752698,0.6629,3217.1,3216.3,0.4618]
[1763270753097,0.4744,3217.0,3216.3,0.4618]
[1763270754202,2.82687774,3216.4,3214.4,3.45492492]
[1763270754400,0.58718777,3216.3,3215.3,0.864904]
[1763270754627,0.3045,3216.3,3215.3,0.864904]
[1763270754927,0.3045,3216.3,3214.7,4.24438809]
[1763270754928,0.3045,3216.3,3215.5,0.405504]
[1763270755621,0.4744,3216.2,3215.5,0.405504]
[1763270757836,0.1885,3217.1,3216.1,0.6043]
[1763270758134,0.6629,3217.1,3216.2,0.405504]
[1763270758319,2.52517774,3217.6,3216.2,0.405504]
[1763270758320,0.1885,3217.6,3217.0,0.4618]
[1763270758519,0.6629,3217.6,3217.0,0.4618]
[1763270760531,0.1885,3218.2,3217.6,0.405504]
[1763270760833,0.1885,3217.9,3217.1,0.405504]
[1763270761034,0.48773671,3218.1,3217.1,0.405504]
[1763270761233,0.48773671,3218.1,3217.3,0.405504]
[1763270761434,0.1885,3218.5,3218.0,0.4618]
[1763270761744,2.26584775,3218.3,3217.0,1.5392448]
[1763270761902,2.26584775,3217.6,3216.6,0.93396988]
[1763270762101,2.26584775,3217.9,3216.6,0.405504]
[1763270762439,0.6629,3217.8,3216.6,0.864904]
[1763270762933,0.4744,3217.7,3216.6,0.864904]
[1763270763431,0.4744,3217.7,3216.8,0.405504]
[1763270764029,0.76727478,3217.7,3216.6,0.405504]
[1763270764222,0.4744,3217.7,3216.6,0.864904]
[1763270764426,0.1885,3217.8,3216.6,0.864904]
[1763270764597,2.26584775,3218.7,3217.7,0.4772]
[1763270764798,0.970792,3218.4,3217.7,0.4772]
[1763270765438,0.6733,3217.8,3217.0,0.405504]
[1763270765625,0.4831,3218.3,3217.0,0.887004]
[1763270766025,0.4831,3218.3,3217.2,0.405504]
[1763270766431,0.002,3217.9,3217.2,0.405504]
[1763270766822,0.002,3217.9,3216.8,0.405504]
[1763270767139,0.002,3217.9,3217.3,0.405504]
[1763270767505,0.002,3217.9,3217.5,0.405504]
[1763270767740,0.002,3217.9,3216.9,0.887004]
[1763270767905,0.002,3217.9,3216.9,1.22696286]
[1763270768105,0.002,3217.9,3217.1,0.405504]
[1763270768516,0.002,3217.9,3217.3,0.405504]
[1763270768905,0.002,3217.9,3217.4,0.405504]
[1763270769306,0.002,3217.9,3217.5,0.4815]
[1763270770157,0.002,3217.9,3217.8,0.4772]
[1763270770448,0.4922,3217.6,3215.1,1.10051061]
[1763270770651,0.3012,3217.5,3215.8,2.26584775]
[1763270770823,0.3012,3217.5,3216.5,0.6132]
[1763270771252,0.4831,3217.4,3216.5,0.1317]
[1763270771963,0.75799477,3217.4,3216.5,0.1317]
[1763270772161,0.75799477,3217.4,3216.1,0.1425]
[1763270772319,0.4831,3217.4,3216.2,0.887004]
[1763270772857,0.4831,3217.4,3216.4,0.405504]
[1763270773297,0.4831,3217.4,3216.5,0.405504]
[1763270773673,0.002,3217.9,3217.4,0.405504]
[1763270773823,0.002,3217.9,3217.4,0.857404]
[1763270774021,0.002,3217.9,3217.8,0.857404]
[1763270774564,0.002,3217.9,3217.8,1.51992639]
[1763270776020,0.002,3217.9,3217.8,1.05962639]
[1763270776215,0.002,3217.9,3217.8,0.405504]
[1763270776441,0.4947,3217.9,3217.3,0.1317]
[1763270776639,1.1321,3217.9,3217.1,0.1317]
[1763270776853,0.6356,3217.9,3217.1,0.1317]
[1763270777069,0.6356,3217.9,3217.2,0.405504]
[1763270777261,0.3745,3217.2,3216.2,0.4603]
[1763270777429,0.4965,3217.8,3216.2,0.4603]
[1763270777430,0.4915,3217.1,3216.2,0.4603]
[1763270777821,0.4915,3217.1,3216.3,0.17365408]
[1763270778021,0.4965,3217.4,3216.3,0.17365408]
[1763270778324,0.4965,3217.4,3216.4,0.4603]
[1763270778521,0.4965,3217.4,3216.5,0.405504]
[1763270779081,0.4965,3217.4,3216.4,0.4603]
[1763270779584,0.4965,3217.4,3216.5,0.405504]
[1763270780658,0.4965,3217.7,3216.6,0.405504]
[1763270780880,0.28982134,3217.6,3216.6,0.405504]
[1763270781027,0.28982134,3217.5,3216.6,0.405504]
[1763270781229,0.28982134,3217.4,3216.6,0.405504]
[1763270781579,0.28982134,3217.4,3216.3,0.2047457]
[1763270781580,0.1429,3217.9,3216.8,0.405504]
[1763270781763,0.28994041,3217.8,3217.4,0.405504]
[1763270781943,0.28994041,3217.7,3217.4,0.405504]
[1763270782142,0.1429,3217.9,3217.0,0.405504]
[1763270782343,0.29007165,3217.8,3217.0,0.865804]
[1763270782563,0.29007165,3217.7,3217.0,0.865804]
[1763270782866,0.29010257,3217.6,3217.0,0.405504]
[1763270783045,0.29010257,3217.5,3216.6,0.1317]
[1763270783233,0.29014877,3217.4,3216.6,0.1317]
[1763270783435,0.4965,3217.7,3216.6,0.1317]
[1763270783629,0.29018307,3217.6,3216.6,0.1317]
[1763270783834,0.29018307,3217.5,3216.7,0.43659176]
[1763270784165,0.29018307,3217.4,3216.7,0.43659176]
[1763270784358,0.4965,3217.8,3216.7,0.89689176]
[1763270784566,0.29025309,3217.7,3216.7,0.865804]
[1763270784785,0.4965,3217.8,3216.7,0.405504]
[1763270784786,0.29025309,3217.6,3216.7,0.405504]
[1763270784988,0.29025309,3217.5,3216.7,0.405504]
[1763270785197,0.29025309,3217.4,3216.7,0.405504]
[1763270785379,0.29025309,3217.3,3216.7,0.405504]
[1763270785596,0.4965,3217.7,3216.7,0.405504]
[1763270785775,0.6799,3216.8,3216.0,1.10051061]
[1763270785979,0.3298,3216.7,3215.5,1.10051061]
[1763270786198,0.8263,3216.7,3215.4,1.10051061]
[1763270786396,0.8263,3216.7,3215.6,0.405504]
[1763270786579,0.78706282,3216.6,3215.5,0.4603]
[1763270786878,2.5564147,3216.5,3215.6,0.15608106]
[1763270787096,0.29056695,3216.4,3215.3,0.001]
[1763270787296,2.26584775,3216.2,3215.3,0.001]
[1763270787607,0.29056695,3216.1,3215.3,0.406504]
[1763270787773,0.29056695,3216.1,3215.3,0.001]
[1763270787774,0.29056695,3216.0,3215.3,0.001]
[1763270787973,0.29056695,3215.9,3215.3,0.001]
[1763270788205,0.29056695,3215.8,3215.3,0.001]
[1763270788385,0.4965,3215.8,3215.3,0.001]
[1763270793509,0.4927,3215.4,3215.3,0.001]
[1763270793694,0.76855478,3215.4,3215.3,0.001]
[1763270793897,1.55482214,3215.4,3215.3,0.001]
[1763270794394,1.26505478,3215.4,3215.3,0.001]
[1763270796282,2.68800646,3215.4,3214.9,0.001]
[1763270796475,2.58994775,3215.0,3214.9,0.001]
[1763270796906,3.05644775,3215.0,3214.9,0.001]
[1763270799211,3.54454369,3215.0,3214.9,0.001]
[1763270801395,1.27869594,3215.0,3214.9,0.001]
[1763270801602,3.54454369,3215.0,3214.9,0.001]
[1763270801802,3.05644775,3215.0,3214.9,0.001]
[1763270804644,0.3241,3215.0,3214.9,0.001]
[1763270804845,0.81216635,3215.0,3214.9,0.001]
[1763270805231,1.27866635,3215.0,3214.9,0.001]
[1763270805395,0.48806635,3215.0,3214.9,0.4588]
[1763270805733,2.26784775,3215.4,3214.9,0.001]
[1763270805895,0.4665,3215.3,3214.9,0.001]
[1763270806411,2.26784775,3215.4,3214.9,0.001]
[1763270806606,0.4685,3215.4,3214.9,0.001]
[1763270806820,0.4897,3215.0,3214.9,0.001]
[1763270807212,0.9562,3215.0,3214.9,0.001]
[1763270807932,0.4897,3215.0,3214.9,0.001]
[1763270808246,0.9562,3215.0,3214.9,0.001]
[1763270809331,1.27840478,3215.0,3214.9,0.001]
[1763270809538,0.9562,3215.0,3214.9,0.001]
[1763270815439,1.24676008,3215.0,3214.9,0.001]
[1763270815647,2.38050088,3215.0,3214.9,0.001]
[1763270820950,3.58030747,3215.0,3214.9,0.001]
[1763270823048,3.58030747,3215.0,3214.6,0.001]
[1763270823356,3.82398819,3214.7,3214.6,0.001]
[1763270823557,4.58104827,3214.7,3214.6,0.001]
[1763270825740,0.29056008,3214.7,3214.6,0.4981]
[1763270825982,0.29056008,3214.7,3214.6,0.9568]
[1763270827437,2.33554739,3215.3,3214.6,0.9568]
[1763270827641,1.42519559,3215.2,3214.7,0.4587]
[1763270827958,0.29145479,3215.1,3214.7,0.4587]
[1763270828168,0.29145479,3215.0,3214.7,0.4587]
[1763270828354,0.29145479,3214.9,3214.7,0.4587]
[1763270828556,0.29145479,3214.8,3214.7,0.4587]
[1763270828945,0.29145479,3214.8,3214.7,0.9558]
[1763270829731,0.29145479,3214.8,3214.7,0.4971]
[1763270832074,0.29141801,3214.8,3214.7,0.9558]
[1763270832463,1.1337408,3215.2,3214.7,0.9558]
[1763270832760,1.1337408,3215.2,3215.1,0.4971]
[1763270832965,0.2913987,3215.2,3215.1,0.4971]
[1763270833131,0.2913987,3215.2,3215.1,1.0629]
[1763270834567,0.2913987,3215.2,3214.6,0.4996]
[1763270834803,0.2913987,3215.1,3214.6,0.4996]
[1763270835080,0.002,3215.3,3215.2,0.4831]
[1763270835247,0.29330014,3215.3,3215.2,0.4831]
[1763270835602,0.002,3215.3,3215.2,0.9817]
[1763270836454,0.002,3215.3,3215.1,0.1071]
[1763270836668,0.002,3215.3,3215.2,0.4831]
[1763270838259,0.002,3215.3,3215.2,0.9817]
[1763270839147,0.002,3215.3,3215.2,0.4831]
[1763270845290,0.4862,3215.3,3214.6,0.001]
[1763270845463,0.4862,3215.3,3214.6,0.4996]
[1763270845464,0.002,3215.3,3214.6,0.4996]
[1763270846700,0.48808616,3215.2,3214.6,0.4996]
[1763270849111,0.48808616,3215.2,3214.6,0.001]
[1763270850003,0.4842,3214.7,3214.6,0.001]
[1763270850368,0.4873,3214.9,3214.6,0.001]
[1763270850879,0.4873,3215.1,3214.6,0.001]
[1763270851083,0.81839335,3215.1,3214.6,0.001]
[1763270851288,0.4873,3215.1,3214.6,0.001]
[1763270852402,0.002,3215.3,3214.6,0.4996]
[1763270852612,0.4873,3215.2,3214.6,0.001]
[1763270853187,2.82084739,3215.2,3214.6,0.001]
[1763270853568,0.4873,3215.1,3214.6,0.001]
[1763270853785,0.76958474,3215.1,3214.6,0.001]
[1763270854018,1.90332554,3215.1,3214.6,0.001]
[1763270854176,0.4873,3215.0,3214.6,0.001]
[1763270855383,0.29160755,3214.9,3214.6,0.001]
[1763270855606,0.4873,3215.0,3214.6,0.001]
[1763270855778,0.29160755,3214.9,3214.6,0.001]
[1763270856145,0.29160758,3214.9,3214.6,0.001]
[1763270856312,0.29160758,3215.1,3214.6,0.001]
[1763270856476,0.29160758,3215.0,3214.6,0.001]
[1763270856775,0.29160758,3214.9,3214.6,0.001]
[1763270857090,0.29160758,3215.1,3214.6,0.001]
[1763270857276,0.29160758,3215.0,3214.6,0.001]
[1763270857476,0.29160758,3214.9,3214.6,0.001]
[1763270857787,0.29160758,3215.1,3214.6,0.001]
[1763270857988,0.29160758,3215.0,3214.6,0.001]
[1763270858181,0.29160758,3214.9,3214.6,0.001]
[1763270858382,0.29160758,3215.2,3214.6,0.001]
[1763270858691,0.29160758,3215.1,3214.6,0.001]
[1763270858879,0.29160758,3215.0,3214.6,0.001]
[1763270859079,0.29160758,3214.9,3214.6,0.001]
[1763270859380,0.29160758,3215.2,3214.6,0.001]
[1763270859580,0.29160758,3215.1,3214.6,0.001]
[1763270859785,0.29160758,3215.0,3214.6,0.001]
[1763270859997,0.485,3215.3,3214.6,0.001]
[1763270860233,0.4536881,3215.2,3214.6,0.001]
[1763270860396,0.29161402,3215.1,3214.6,0.001]
[1763270860727,0.29161402,3215.0,3214.6,0.001]
[1763270860933,0.64507408,3215.2,3214.6,0.001]
[1763270861136,0.7746167,3215.1,3214.6,0.001]
[1763270861435,0.2916167,3215.0,3214.6,0.001]
[1763270861598,0.483,3215.1,3214.6,0.001]
[1763270861932,0.29162045,3215.0,3214.6,0.001]
[1763270862108,0.483,3215.1,3214.6,0.001]
[1763270862308,0.29162041,3215.0,3214.6,0.001]
[1763270862515,0.483,3215.1,3214.6,0.001]
[1763270862700,0.29161467,3215.0,3214.6,0.001]
[1763270862905,0.483,3215.1,3214.6,0.001]
[1763270863105,0.29161464,3215.0,3214.6,0.001]
[1763270863305,0.483,3215.1,3214.6,0.001]
[1763270863537,0.29160021,3215.0,3214.6,0.001]
[1763270863714,0.483,3215.1,3214.6,0.001]
[1763270863919,0.29160021,3215.0,3214.6,0.001]
[1763270864116,0.483,3215.1,3214.6,0.001]
[1763270864328,0.29160024,3215.0,3214.6,0.001]
[1763270864530,0.483,3215.1,3214.6,0.001]
[1763270864704,0.29158705,3215.0,3214.6,0.001]
[1763270864901,0.483,3215.1,3214.6,0.001]
[1763270865132,0.29158705,3215.0,3214.6,0.4586]
[1763270865440,0.485,3215.3,3214.6,0.001]
[1763270865648,0.93665094,3215.2,3214.6,0.001]
[1763270865808,0.29157686,3215.1,3214.6,0.001]
[1763270866141,0.29157686,3215.0,3214.6,0.001]
[1763270866339,0.483,3215.0,3214.6,0.001]
[1763270866908,2.11992643,3215.0,3214.6,0.001]
[1763270868859,0.4991,3214.7,3214.6,0.001]
[1763270869324,1.27381019,3214.7,3214.6,0.001]
[1763270870914,2.40755099,3214.7,3214.6,0.001]
[1763270874414,2.1158408,3214.7,3214.6,0.001]
[1763270874715,2.40713401,3214.7,3214.6,0.001]
[1763270874929,2.81154005,3214.7,3214.6,0.001]
[1763270880046,0.8176,3214.6,3214.2,0.001]
[1763270880286,2.13442643,3214.3,3214.2,0.001]
[1763270880581,2.42556829,3214.3,3214.2,0.001]
[1763270880766,4.04230909,3214.3,3214.2,0.001]
[1763270880946,4.55991408,3214.3,3214.2,0.001]
[1763270882169,5.0482473,3214.3,3214.2,0.001]
[1763270882886,7.05146451,3214.3,3214.2,0.001]
[1763270883190,4.25089269,3214.3,3214.2,0.001]
[1763270883380,4.74999269,3214.3,3214.2,0.001]
[1763270883887,5.23299269,3214.3,3214.2,0.001]
[1763270884083,7.05306451,3214.3,3214.2,0.001]
[1763270884284,4.74999269,3214.3,3214.2,0.001]
[1763270884487,4.25089269,3214.3,3214.2,0.001]
[1763270884972,4.73039269,3214.3,3214.2,0.001]
[1763270885678,5.20599269,3214.3,3214.2,0.001]
[1763270886386,4.25089269,3214.3,3214.2,0.001]
[1763270886748,4.25089269,3214.3,3214.2,0.462]
[1763270887197,4.25089269,3214.3,3214.2,0.001]
[1763270887693,4.73039269,3214.3,3214.2,0.001]
[1763270891183,4.73028131,3214.3,3214.2,0.001]
[1763270895596,0.7793637,3214.3,3214.2,1.0462]
[1763270895762,0.29103048,3214.3,3214.2,1.0462]
[1763270895967,2.1111023,3214.3,3214.2,0.5901]
[1763270896169,2.1111023,3214.3,3214.2,0.453]
[1763270898315,0.29103048,3214.3,3214.2,0.453]
[1763270898466,0.29103048,3214.3,3214.2,0.9091]
[1763270899267,5.08938435,3214.3,3213.9,0.001]
[1763270899527,0.4913,3213.6,3212.5,1.10051061]
[1763270899667,0.405504,3213.8,3212.0,0.4561]
[1763270899668,4.13144364,3212.6,3212.0,0.4561]
[1763270899876,1.82007182,3212.4,3212.0,0.4561]
[1763270900423,1.82007182,3212.4,3212.3,0.452]
[1763270901511,1.82007182,3212.6,3212.3,0.452]
[1763270901806,1.82007182,3213.0,3212.3,0.9081]
[1763270901971,1.82007182,3212.6,3212.5,0.452]
[1763270904606,0.1903,3213.2,3212.5,0.452]
[1763270904806,1.5893408,3213.4,3212.8,0.452]
[1763270905043,0.67995287,3213.3,3212.8,0.452]
[1763270905318,0.29089237,3213.2,3212.8,0.452]
[1763270905999,2.31137182,3212.9,3212.1,0.4561]
[1763270906177,1.82007182,3212.6,3212.1,0.4561]
[1763270906618,1.82007182,3212.6,3212.5,0.452]
[1763270907335,4.13144364,3212.6,3211.9,0.4561]
[1763270907495,1.82007182,3212.1,3211.7,0.1071]
[1763270907698,1.82007182,3211.9,3211.7,0.1071]
[1763270908115,1.82007182,3211.9,3211.8,0.452]
[1763270908480,1.82007182,3212.0,3211.8,0.9081]
[1763270908707,1.82007182,3212.0,3211.9,0.452]
[1763270909431,2.30858511,3212.0,3211.9,0.452]
[1763270909638,2.30858511,3212.0,3211.9,0.9081]
[1763270909795,2.30858511,3212.0,3211.9,0.9091]
[1763270910625,0.48851329,3212.0,3211.9,0.9091]
[1763270911545,2.30858511,3212.0,3211.9,0.9091]
[1763270911696,2.30858511,3212.0,3211.9,0.453]
[1763270911897,1.82007182,3212.0,3211.9,0.453]
[1763270912433,0.4556,3212.7,3211.9,0.453]
[1763270912738,1.82007182,3212.2,3211.9,0.453]
[1763270913231,1.82007182,3212.2,3212.1,0.452]
[1763270913528,0.18200718,3212.2,3212.1,0.452]
[1763270913727,1.82007182,3212.2,3212.1,0.452]
[1763270914038,0.4556,3212.7,3212.1,0.9081]
[1763270914039,1.82007182,3212.7,3212.1,0.9081]
[1763270914225,1.82007182,3212.7,3212.6,0.452]
[1763270914402,1.82007182,3212.7,3212.6,0.9302]
[1763270914601,1.82007182,3212.7,3212.6,0.452]
[1763270914803,2.30858597,3212.7,3212.6,0.452]
[1763270915304,0.48851415,3212.7,3212.6,0.9302]
[1763270915819,0.48851415,3212.7,3212.6,0.452]
[1763270919044,0.48851415,3212.7,3212.6,0.9302]
[1763270919544,1.82007182,3213.0,3212.6,0.9302]
[1763270919850,1.82007182,3213.0,3212.9,0.4618]
[1763270920147,1.82007182,3213.0,3211.9,0.406504]
[1763270920354,1.82007182,3213.0,3212.3,0.4782]
[1763270922135,0.4779,3213.1,3212.3,0.4782]
[1763270922136,1.82007182,3212.8,3212.3,0.4782]
[1763270926216,0.4882,3212.4,3211.9,0.001]
[1763270926618,0.4882,3212.4,3211.9,0.4792]
[1763270926819,1.82007182,3212.6,3211.9,0.4792]
[1763270927355,1.82007182,3212.6,3212.3,0.001]
[1763270927943,2.29797182,3212.6,3212.3,0.001]
[1763270928142,0.4882,3212.4,3212.3,0.001]
[1763270928320,2.29797182,3212.6,3212.3,0.001]
[1763270929554,2.30827182,3212.4,3212.3,0.001]
[1763270932180,0.23085626,3212.8,3212.3,0.4628]
[1763270932389,1.82007182,3212.6,3212.3,0.4628]
[1763270933153,2.29797182,3212.6,3212.3,0.4628]
[1763270933382,2.29797182,3212.6,3212.3,0.001]
[1763270933582,0.4882,3212.4,3212.3,0.001]
[1763270933987,2.30827182,3212.4,3212.3,0.001]
[1763270934498,1.82007182,3212.7,3212.3,0.941]
[1763270934800,0.29185125,3212.6,3212.4,0.4618]
[1763270935375,0.29185125,3212.6,3212.3,0.001]
[1763270937412,0.76975125,3212.6,3212.3,0.001]